[Event "Grandiscacchi GM Festival 2022"]
[Site "Montebelluna"]
[Date "2022.05.18"]
[Round "5.2"]
[White "Rozen, Eytan"]
[Black "Loiseau, Quentin"]
[Result "1/2-1/2"]
[ECO "D30"]
[WhiteElo "2425"]
[BlackElo "2445"]
[Annotator "TA"]
[PlyCount "117"]
[EventDate "2022.05.17"]
[EventType "swiss"]
[EventCountry "ITA"]
[SourceTitle "playchess.com"]
[Source "ChessBase"]
[SourceQuality "1"]
[TimeControl "40/3600+30:1800+30"]

{[%evp 17,117,15,22,21,17,16,32,34,42,27,37,33,29,33,52,57,59,58,63,65,69,56,61,60,69,52,50,49,52,48,41,19,95,16,16,14,12,17,13,0,0,0,5,5,5,5,5,5,5,0,0,-2,0,0,0,0,0,0,0,0,0,0,0,0,0,0,0,0,0,0,0,0,0,0,0,0,0,0,0,0,0,0,0,0,0,0,0,0,0,0,0,0,0,0,0,0,0,0,0,0,0,0]} 1. c4 {[%emt 0:00:02]} c6 {[%emt 0:00:18]} 2. Nf3 {[%emt 0:02:09]} d5 {[%emt 0:00:07]} 3. e3 {[%emt 0:00:48]} Nf6 {[%emt 0:00:09]} 4. b3 {[%emt 0:01:19]} e6 {[%emt 0:00:57]} 5. Bb2 {[%emt 0:00:17]} Bd6 {[%emt 0:01:03]} 6. d4 {[%emt 0:01:44][%cal Bd2d4,Bd4e5][%mdl 32]} O-O {[%emt 0:06:40]} 7. Bd3 {[%emt 0:00:35]} Nbd7 {[%emt 0:01:59]} 8. O-O {[%emt 0:00:30]} Ne4 {[%emt 0:04:25]} 9. Nbd2 {[%emt 0:01:12][%cal Bb1d2,Bd2f3,Bf3d4][%mdl 32]} f5 {[%emt 0:00:15]} 10. Ne5 {[%emt 0:03:14] D30: Queen's Gambit Declined: Systems without Nc3.} Nxe5 {[%emt 0:07:14]} 11. dxe5 {[%emt 0:00:30]} Bc5 {[%emt 0:03:07]} 12. Nf3 {[%emt 0:03:31] White is slightly better.} a5 {[%emt 0:07:28]} 13. Qc2 {[%emt 0:08:47]} Qe7 {[%emt 0:00:17]} 14. a3 {[%emt 0:00:47]} Bd7 {[%emt 0:00:33] [#]} 15. Nd4 $146 {[%emt 0:06:08]} ({Predecessor:} 15. a4 Rac8 16. Bd4 b6 17. Rac1 g5 18. Bxc5 bxc5 19. Ne1 g4 20. f3 gxf3 21. gxf3 {0-1 (29) Malyshev,R (2131)-Inarkiev,E (2668) Minsk 2015}) 15... Rfc8 {[%emt 0:01:02]} 16. f3 {[%emt 0:03:08]} Ng5 {[%emt 0:00:33]} 17. Rfc1 {[%emt 0:02:37]} Nf7 {[%emt 0:06:00]} 18. f4 {[%emt 0:00:47]} Nh6 {[%emt 0:00:24]} 19. cxd5 {[%emt 0:04:10]} cxd5 {[%emt 0:00:34] [#] ...Bxd4 is the strong threat.} 20. Qe2 {[%emt 0:00:35]} Qd8 {[%emt 0:05:12]} 21. Bb5 {[%emt 0:06:29]} Qe8 {[%emt 0:03:16]} 22. a4 {[%emt 0:02:33]} Nf7 {[%emt 0:00:26]} 23. Qd3 {[%emt 0:07:23]} Nd8 {[%emt 0:03:52]} 24. g3 {[%emt 0:01:37]} Bb6 {[%emt 0:01:08]} (24... b6 $11 {keeps the balance.}) 25. Ba3 {[%emt 0:01:20] 0x0.0024da2ec2bfdp-1022s more active pieces. The black rooks are badly placed.} (25. Rxc8 $16 Rxc8 26. Kg2) 25... Nc6 $11 {[%emt 0:00:42] The position is equal.} 26. Bxc6 {[%emt 0:01:43]} Bxc6 {[%emt 0:00:32]} 27. Bc5 {[%emt 0:00:46]} Bb5 {[%emt 0:01:27]} 28. Qxb5 {[%emt 0:00:46]} Qxb5 {[%emt 0:00:05]} 29. Nxb5 {[%emt 0:01:06]} Bxc5 {[%emt 0:02:36]} 30. Kf2 {[%emt 0:00:00]} Kf7 {[%emt 0:00:00]} 31. Kf3 {[%emt 0:00:00]} Rc6 {[%emt 0:00:00]} 32. Rc2 {[%emt 0:00:00]} Ke7 {[%emt 0:00:00]} 33. Rac1 {[%emt 0:00:00]} Rac8 {[%emt 0:00:00]} 34. Ke2 {[%emt 0:00:00]} Bxe3 {[%emt 0:00:00]} 35. Rxc6 {[%emt 0:00:00]} Rxc6 {[%emt 0:00:00]} 36. Rxc6 {[%emt 0:00:00]} bxc6 {[%emt 0:00:00]} 37. Kxe3 {[%emt 0:00:00]} cxb5 {[%emt 0:00:00][%mdl 4096] Endgame KP-KP} 38. Kd4 {[%emt 0:00:00]} bxa4 {[%emt 0:00:00]} 39. bxa4 {[%emt 0:00:00]} Kd7 {[%emt 0:00:00] [#] And now ...Kc6 would win.} 40. Kc5 {[%emt 0:00:00]} Kc7 {[%emt 0:00:00]} 41. Kb5 {[%emt 0:10:49]} h6 {[%emt 0:22:37]} 42. h4 {[%emt 0:04:13]} h5 {[%emt 0:00:09]} (42... d4 $5 43. Kc4 Kc6 $11) 43. Kc5 {[%emt 0:00:47]} Kc8 {[%emt 0:01:10]} (43... g6 $5) 44. Kb5 $1 {[%emt 0:00:37]} ({Don't go for} 44. Kd6 $2 d4 45. Kc6 d3 $19) 44... Kb7 {[%emt 0:00:01]} 45. Kxa5 {[%emt 0:00:47]} Kc6 {[%emt 0:00:02] aiming for ...Kc5.} 46. Kb4 {[%emt 0:00:11]} Kb6 {[%emt 0:00:02]} 47. Kc3 {[%emt 0:02:43]} Kc5 {[%emt 0:00:29]} (47... Ka5 $5 48. Kb3 g6 $11) 48. Kb3 $1 {[%emt 0:00:02]} Kc6 {[%emt 0:02:14]} 49. Kb4 {[%emt 0:01:34]} Kb6 {[%emt 0:00:01]} 50. Kc3 {[%emt 0:00:13]} Ka5 {[%emt 0:00:08]} (50... Kc5 $5) 51. Kb3 {[%emt 0:00:02]} d4 {[%emt 0:01:15]} (51... g6 $5) 52. Kc4 {[%emt 0:00:06]} Kxa4 {[%emt 0:00:05]} 53. Kxd4 {[%emt 0:00:05]} Kb4 {[%emt 0:00:22]} 54. Kd3 {[%emt 0:00:10]} Kc5 {[%emt 0:00:10]} 55. Kc3 {[%emt 0:00:05]} Kd5 {[%emt 0:00:06]} 56. Kd3 {[%emt 0:00:05]} g6 {[%emt 0:00:06]} 57. Ke3 {[%emt 0:00:31]} Kc4 {[%emt 0:00:04]} 58. Ke2 {[%emt 0:00:05]} Kd4 {[%emt 0:00:18]} 59. Kd2 {[%emt 0:00:02] Weighted Error Value: White=0.06 (flawless) /Black=0.06 (flawless)} 1/2-1/2

[Event "Grandiscacchi GM Festival 2022"]
[Site "Montebelluna"]
[Date "2022.05.18"]
[Round "5.3"]
[White "Shahil Dey"]
[Black "Safarli, Eltaj"]
[Result "0-1"]
[ECO "B29"]
[WhiteElo "2369"]
[BlackElo "2600"]
[Annotator "TA"]
[PlyCount "96"]
[EventDate "2022.05.17"]
[EventType "swiss"]
[EventCountry "ITA"]
[SourceTitle "playchess.com"]
[Source "ChessBase"]
[SourceQuality "1"]
[TimeControl "40/3600+30:1800+30"]

{[%evp 12,96,35,34,27,22,28,29,35,22,35,22,26,29,19,20,25,14,11,14,14,17,31,10,29,15,18,-15,-25,-23,-30,-36,-34,-40,-33,-41,-38,-37,-37,-36,-35,-42,-37,-40,-39,-64,-51,-53,-54,-71,-53,-48,-49,-50,-45,-53,-65,-86,-103,-136,-136,-135,-143,-152,-116,-177,-162,-162,-162,-267,-264,-292,-281,-336,-340,-1158,-1123,-1223,-1223,-1208,-1197,-1195,-1155,-1092,-992,-956,-893]} 1. e4 {[%emt 0:00:02]} c5 {[%emt 0:00:03]} 2. Nf3 {[%emt 0:00:22]} Nf6 {[%emt 0:00:09]} 3. e5 {[%emt 0:00:05]} Nd5 {[%emt 0:00:05]} 4. Nc3 {[%emt 0:00:06]} e6 {[%emt 0:00:05]} 5. Nxd5 {[%emt 0:01:28]} exd5 {[%emt 0:00:06]} 6. d4 {[%emt 0:00:11]} Nc6 {[%emt 0:00:05]} 7. c3 {[%emt 0:10:15]} cxd4 {[%emt 0:00:22] B29: Sicilian: 2 Nf3 Nf6 (Nimzowitsch Variation).} 8. Nxd4 {[%emt 0:01:09]} d6 {[%emt 0:00:22]} 9. Bb5 {[%emt 0:01:22]} Bd7 {[%emt 0:00:06] White has an edge.} 10. exd6 {[%emt 0:01:44]} Bxd6 {[%emt 0:00:18]} 11. Qe2+ {[%emt 0:00:16]} Be7 {[%emt 0:09:35] [#]} 12. Be3 $146 {[%emt 0:01:38]} ({Predecessor:} 12. Bg5 Nxd4 13. cxd4 Qa5+ 14. Kd1 O-O 15. Bxe7 Bxb5 16. Qd2 Ba4+ 17. b3 Bxb3+ 18. Ke1 {0-1 (25) Remizov,Y (2385)-Le,T (2514) Chess.com INT 2020}) 12... O-O {[%emt 0:00:42]} 13. O-O {[%emt 0:00:07]} Re8 {[%emt 0:00:09]} 14. Bd3 {[%emt 0:03:01]} g6 {[%emt 0:03:39] Prevents Qh5.} 15. Qd2 {[%emt 0:03:33]} Ne5 {[%emt 0:02:14]} 16. Rfe1 {[%emt 0:00:59]} Bf6 {[%emt 0:03:30]} 17. b3 {[%emt 0:04:55]} Qa5 {[%emt 0:06:11]} 18. Rac1 {[%emt 0:02:50]} Ng4 {[%emt 0:07:50]} 19. b4 {[%emt 0:15:12]} Qc7 {[%emt 0:07:01]} 20. Bf4 {[%emt 0:06:26] [#]} Bg5 $1 {[%emt 0:03:45]} 21. Rxe8+ {[%emt 0:00:13]} (21. g3 Rxe1+) 21... Rxe8 {[%emt 0:00:10]} 22. g3 {[%emt 0:00:13]} Bxf4 {[%emt 0:00:30]} 23. Qxf4 {[%emt 0:00:08]} Qxf4 {[%emt 0:00:06]} 24. gxf4 {[%emt 0:00:08]} Nf6 {[%emt 0:00:15]} 25. Kg2 {[%emt 0:02:57]} Nh5 {[%emt 0:04:36]} 26. Kf3 {[%emt 0:00:10]} Bh3 {[%emt 0:00:33]} 27. Rg1 {[%emt 0:10:38]} Rc8 {[%emt 0:02:57]} 28. Ne2 {[%emt 0:00:02]} f5 {[%emt 0:04:56] Threatens to win with ...Re8.} 29. Ke3 {[%emt 0:00:06]} Re8+ $1 {[%emt 0:14:40]} 30. Kd2 $1 {[%emt 0:00:00] [#]} Bg4 $1 $36 {[%emt 0:00:00][%mdl 2048] Black fights for an advantage.} 31. Nd4 {[%emt 0:00:00]} Nxf4 {[%emt 0:00:00]} 32. f3 {[%emt 0:00:00]} Bh3 {[%emt 0:00:00]} 33. Bb5 {[%emt 0:00:00]} Re7 {[%emt 0:00:00]} 34. Ba4 {[%emt 0:00:00] Black converts the advantage convincingly.} Kf7 {[%emt 0:00:00]} 35. Bd1 {[%emt 0:00:00]} Kf6 {[%emt 0:00:00]} 36. a4 {[%emt 0:00:00]} g5 {[%emt 0:00:00]} 37. b5 {[%emt 0:00:00]} Ne6 {[%emt 0:00:00] Black is more active.} 38. Bb3 {[%emt 0:03:21]} (38. Nxe6 $17 {keeps fighting.} Rxe6 39. Rg3) 38... Nxd4 $19 {[%emt 0:00:00]} 39. cxd4 {[%emt 0:00:06][%mdl 4096] Endgame KRB-KRB} f4 {[%emt 0:00:00][%cal Bf5f4,Bf4f3,Bf3f2][%mdl 32]} 40. a5 {[%emt 0:06:47]} (40. Re1 $142) 40... h5 {[%emt 0:00:00]} 41. Bxd5 {[%emt 0:26:38]} Rd7 {[%emt 0:14:17]} 42. Be4 {[%emt 0:00:07]} Rxd4+ {[%emt 0:00:04]} 43. Kc3 $2 {[%emt 0:00:18] [#]} (43. Ke2 Ra4 44. b6) 43... Rxe4 $1 {[%emt 0:00:50][%mdl 512] Black is clearly winning.} 44. fxe4 {[%emt 0:00:06]} (44. Rc1 Re3+) 44... f3 {[%emt 0:00:26]} 45. Rg3 {[%emt 0:01:00]} Bg2 {[%emt 0:00:33]} 46. e5+ {[%emt 0:00:51]} Kf5 {[%emt 0:03:46]} 47. e6 {[%emt 0:00:21]} Kxe6 {[%emt 0:00:10] And now ...f2 would win.} ({And not} 47... h4 48. e7 hxg3 49. e8=Q $11) 48. Rxg5 {[%emt 0:00:07]} f2 {[%emt 0:00:12] Weighted Error Value: White=0.34/Black=0.02 (flawless)} 0-1

[Event "Grandiscacchi GM Festival 2022"]
[Site "Montebelluna"]
[Date "2022.05.18"]
[Round "5.4"]
[White "Siddharth, Jagadeesh"]
[Black "Fishchuk, Vladyslav"]
[Result "1/2-1/2"]
[ECO "D50"]
[WhiteElo "2393"]
[BlackElo "2102"]
[Annotator "TA"]
[PlyCount "62"]
[EventDate "2022.05.17"]
[EventType "swiss"]
[EventCountry "ITA"]
[SourceTitle "playchess.com"]
[Source "ChessBase"]
[SourceQuality "1"]
[TimeControl "40/3600+30:1800+30"]

{[%evp 14,62,22,12,60,7,10,8,0,0,18,20,12,19,36,27,35,28,31,31,35,33,52,42,50,37,49,35,62,22,47,51,20,13,88,91,100,98,113,129,111,98,99,27,57,57,54,54,56,40,42]} 1. d4 {[%emt 0:01:41]} Nf6 {[%emt 0:00:11]} 2. c4 {[%emt 0:00:18]} e6 {[%emt 0:00:03]} 3. Nf3 {[%emt 0:00:19]} d5 {[%emt 0:00:06]} 4. Nc3 {[%emt 0:00:13]} c5 {[%emt 0:00:05]} 5. cxd5 {[%emt 0:00:42]} cxd4 {[%emt 0:00:09]} 6. Qxd4 {[%emt 0:02:33]} exd5 {[%emt 0:00:07]} 7. Bg5 {[%emt 0:02:44]} Be7 {[%emt 0:00:32]} 8. e3 {[%emt 0:00:08]} h6 {[%emt 0:01:30] [#] D50: Queen's Gambit Declined: Dutch-Peruvian Gambit.} (8... O-O $11) 9. Bf4 $146 {[%emt 0:07:06]} (9. Bxf6 $14 Bxf6 10. Qc5) ({Predecessor:} 9. Bh4 Be6 10. Bb5+ Kf8 11. O-O Nc6 12. Bxc6 bxc6 13. Na4 Qa5 14. Rfc1 Rc8 15. Nc5 Qb6 16. Nxe6+ fxe6 {1-0 (34) Kockum,A (2367)-Castrillon Gomez,M (2227) Gothenburg 2019}) 9... Nc6 $11 {[%emt 0:01:39]} 10. Qd3 {[%emt 0:00:47]} O-O {[%emt 0:00:24] The position is equal.} 11. Be2 {[%emt 0:00:10]} Be6 {[%emt 0:01:37]} 12. O-O {[%emt 0:00:10]} Qb6 {[%emt 0:06:29]} 13. a3 {[%emt 0:04:14]} a6 {[%emt 0:01:08]} (13... Qxb2 $2 14. Rfb1 Bf5 15. Rxb2 $18) 14. b4 {[%emt 0:03:32]} Rac8 {[%emt 0:01:56]} 15. h3 {[%emt 0:03:54]} Rfd8 {[%emt 0:01:07]} 16. Rfd1 {[%emt 0:00:34]} Qa7 {[%emt 0:03:02]} 17. Rac1 {[%emt 0:05:39]} b5 {[%emt 0:02:05]} 18. Ne5 {[%emt 0:04:06]} Qb7 {[%emt 0:01:24]} 19. Bf3 {[%emt 0:01:00]} Nxe5 {[%emt 0:00:35]} 20. Bxe5 {[%emt 0:00:13]} Rc4 {[%emt 0:03:12]} 21. Ne2 {[%emt 0:06:45] Rxc4 is the strong threat.} Ne4 {[%emt 0:03:13]} 22. Nf4 {[%emt 0:04:26]} Bf5 {[%emt 0:04:41]} 23. Qe2 {[%emt 0:05:00]} Qc8 {[%emt 0:06:53]} (23... Bh4 $11) 24. Qb2 $16 {[%emt 0:05:15]} Bf8 {[%emt 0:01:51]} 25. Be2 {[%emt 0:02:24]} Rc6 {[%emt 0:02:01]} 26. Rxc6 {[%emt 0:02:23]} Qxc6 {[%emt 0:00:02]} 27. Rc1 {[%emt 0:00:01]} Qe8 {[%emt 0:00:15]} 28. Qd4 {[%emt 0:01:04] White is more active.} ({Better is} 28. Bc7 $16 Rd7 29. Bd3) 28... Rc8 {[%emt 0:00:59]} 29. Rxc8 {[%emt 0:03:53] White is slightly better.} Qxc8 {[%emt 0:00:02]} 30. Qb2 {[%emt 0:00:00] Inhibits Qc1+.} ({But not} 30. Qxd5 Qc1+ 31. Qd1 Qxa3 $15) 30... Qc6 {[%emt 0:00:00]} 31. Bf3 {[%emt 0:04:46]} f6 {[%emt 0:28:42] Weighted Error Value: White=0.12 (very precise) /Black=0.18 (very precise)} 1/2-1/2

[Event "Grandiscacchi GM Festival 2022"]
[Site "Montebelluna"]
[Date "2022.05.18"]
[Round "5.5"]
[White "Martinovici, Ilia"]
[Black "Ojas Kulkarni"]
[Result "1/2-1/2"]
[ECO "A65"]
[WhiteElo "2408"]
[BlackElo "2235"]
[Annotator "TA"]
[PlyCount "131"]
[EventDate "2022.05.17"]
[EventType "swiss"]
[EventCountry "ITA"]
[SourceTitle "playchess.com"]
[Source "ChessBase"]
[SourceQuality "1"]
[TimeControl "40/3600+30:1800+30"]

{[%evp 13,131,22,38,16,23,13,12,0,14,24,37,32,32,25,38,32,48,68,71,64,71,56,87,50,57,38,44,45,113,118,109,111,116,106,113,111,113,106,126,35,39,27,95,52,75,45,154,23,1129,0,0,-29999,39,35,127,119,110,97,108,101,104,0,0,0,0,-118,-137,-113,0,0,0,0,0,0,0,0,0,0,0,0,0,-126,0,0,0,0,0,0,0,-22,-22,-22,0,0,0,0,0,-11,0,-35,-35,-35,-35,-50,-35,-76,-76,-76,-76,-76,-76,-76,-76,-76,-76,-76,0,-76,-57,-61]} 1. d4 {[%emt 0:04:16]} Nf6 {[%emt 0:00:06]} 2. c4 {[%emt 0:00:19]} g6 {[%emt 0:00:07]} 3. f3 {[%emt 0:00:01]} c5 {[%emt 0:07:49]} 4. d5 {[%emt 0:00:07]} e6 {[%emt 0:00:04]} 5. Nc3 {[%emt 0:00:32]} exd5 {[%emt 0:00:08]} 6. cxd5 {[%emt 0:00:03]} d6 {[%emt 0:00:05]} 7. e4 {[%emt 0:00:03]} Bg7 {[%emt 0:00:06]} 8. Nge2 $1 {[%emt 0:00:07][%cal Bg1e2,Be2g3,Bg3h1,Bh1f2][%mdl 4] is recently more successful than 8.Bg5. A65: Modern Benoni: 6 e4.} a6 {[%emt 0:00:12]} 9. a4 {[%emt 0:00:04]} Nbd7 {[%emt 0:00:10]} 10. Bg5 {[%emt 0:00:06] The position is equal.} h6 {[%emt 0:00:31][%cal Bh7h6,Bh6h5,Bh5h4][%mdl 32]} 11. Be3 {[%emt 0:00:04]} Qe7 {[%emt 0:01:18]} 12. Ng3 {[%emt 0:00:13]} h5 {[%emt 0:00:21]} 13. Be2 {[%emt 0:00:03]} Nh7 {[%emt 0:04:59][%cal Of7f5]} 14. O-O {[%emt 0:02:11] [#]} h4 $146 {[%emt 0:01:49]} ({Predecessor:} 14... O-O 15. Qd2 h4 16. Nh1 f5 17. exf5 gxf5 18. Rae1 Qxe3+ 19. Qxe3 Bd4 20. Qxd4 cxd4 21. Nb1 Nc5 {½-½ (74) Tang,A (2507)-Melkumyan,H (2650) chess24.com INT 2019}) 15. Nh1 {[%emt 0:00:05]} g5 {[%emt 0:00:06][%cal Of7f5]} 16. Qd2 {[%emt 0:00:59] White is more active.} Ne5 {[%emt 0:00:20]} 17. Nf2 {[%emt 0:01:38]} O-O {[%emt 0:05:40]} 18. Rae1 {[%emt 0:06:09]} Bd7 {[%emt 0:05:30]} 19. f4 {[%emt 0:02:49]} gxf4 {[%emt 0:00:28]} 20. Bxf4 {[%emt 0:00:04]} b5 {[%emt 0:01:35]} (20... Rae8 $14) 21. axb5 $16 {[%emt 0:09:52]} axb5 {[%emt 0:00:05]} 22. Bxb5 {[%emt 0:00:03]} Bxb5 {[%emt 0:15:03]} 23. Nxb5 {[%emt 0:00:06]} Rab8 {[%emt 0:00:04]} 24. Qe2 {[%emt 0:00:27]} Qd7 {[%emt 0:00:22]} 25. Nc3 {[%emt 0:00:07]} f5 {[%emt 0:00:23]} 26. exf5 {[%emt 0:05:23]} ({White should try} 26. Kh1 $16) 26... Qxf5 $14 {[%emt 0:01:07]} 27. Nfe4 {[%emt 0:00:44]} Qg6 {[%emt 0:00:56]} (27... Qg4 $1 $11 28. h3 (28. Qxg4 Nxg4 29. Bxd6 Bd4+ 30. Kh1 Rxf1+ 31. Rxf1 Rxb2 $14) 28... Qxe2 29. Rxe2 Nd3) 28. Ra1 {[%emt 0:11:18]} Rbe8 {[%emt 0:06:37]} 29. h3 {[%emt 0:04:26] Inhibits Ng4.} Rf5 {[%emt 0:08:01]} (29... Nd7 $14 30. Qg4 Qxg4 31. hxg4 Bd4+ 32. Kh2 Nhf6 33. Bxd6 (33. Nxd6 Rb8 $16) 33... Nxe4 34. Bxf8 Nxc3) 30. Bh2 {[%emt 0:00:00]} ({White should play} 30. Bd2 $16 {Rxf5 is the strong threat.} Rxf1+ 31. Rxf1) 30... Rf4 {[%emt 0:11:28][%mdl 8192]} 31. Rf2 $2 (31. Rxf4 $18 Nf7 32. Qg4 Qxg4 33. Rxg4) 31... Rxf2 $11 {[%emt 0:00:00][%csl Gf2][%cal Rg6g2]} 32. Rd1 $2 {[%emt 0:24:11][%mdl 8192]} Rf1+ $2 33. Rxf1 $14 {[%emt 0:00:00]} Ng5 {[%emt 0:00:00]} (33... Nf7 $1 $14 34. Qg4 Bd4+ 35. Kh1 Qxg4 36. hxg4 Bxc3 37. Nxc3 Nhg5) 34. Nxg5 {[%emt 0:00:00]} Qxg5 {[%emt 0:00:00]} 35. Ne4 {[%emt 0:00:00]} Qg6 {[%emt 0:00:00][%cal Oe5g4]} 36. Rf4 {[%emt 0:00:00] Prevents Ng4.} Ra8 {[%emt 0:00:00]} 37. Qf1 {[%emt 0:00:00] Prevents Ra1.} (37. Qd1 $16) 37... Bh6 $1 $11 {[%emt 0:00:00]} 38. Rf5 {[%emt 0:00:00][%cal Oe4d6]} (38. Rxh4 $2 Rf8 39. Bf4 Qxe4 40. Rxh6 Rxf4 $19) 38... Nc4 {[%emt 0:00:00]} (38... Be3+ 39. Kh1 $16) 39. Qf3 {[%emt 0:00:00]} (39. Qxc4 $2 Be3+ 40. Kf1 Qxf5+ 41. Ke2 Bd4 $19) (39. Nf6+ $11 {was the only way to keep the balance.} Kg7 40. Nh5+ Kg8 41. Nf6+ Kg7 42. Nh5+ Kg8 43. Nf6+) 39... Ne3 $17 {[%emt 0:00:00]} 40. Rf6 {[%emt 0:00:00]} ({Wrong is} 40. Nf6+ $2 Kh8 41. Bxd6 Ra1+ 42. Kh2 Nxf5 $19) 40... Qg7 {[%emt 0:00:00]} (40... Ra1+ $17 41. Kf2 Qg7) 41. Bxd6 {[%emt 0:29:13] Dancing on a razor blade.} Ra1+ {[%emt 0:28:54]} 42. Kh2 {[%emt 0:00:24]} Nf1+ {[%emt 0:00:58]} 43. Qxf1 $1 {[%emt 0:00:05]} Rxf1 {[%emt 0:00:01]} 44. Rxf1 {[%emt 0:00:05] aiming for Rf8+.} Qd4 {[%emt 0:01:39]} 45. Nf6+ {[%emt 0:00:59]} ({Don't blunder} 45. Nxc5 $2 Qxd5 46. Rf6 Bg7 $19) 45... Kh8 {[%emt 0:00:10]} 46. Rf5 {[%emt 0:02:26]} Be3 {[%emt 0:02:41]} 47. Rf1 {[%emt 0:02:01] [#] Against Bg1+} (47. Be5 $11 Bg1+ 48. Kh1) 47... Bg5 {[%emt 0:01:07]} (47... Qc4 $1 $17 {[%cal Rc4f1]} 48. Rf3 Qc1 49. Rxe3 Qxe3) 48. Ng4 $11 {[%emt 0:00:48] Black must now prevent Be5+.} Qxd5 {[%emt 0:00:13]} 49. Be5+ {[%emt 0:00:04]} Kh7 {[%emt 0:00:56]} 50. Kh1 {[%emt 0:00:15]} Qd3 {[%emt 0:01:52]} 51. Ra1 {[%emt 0:00:42]} Qe2 {[%emt 0:01:01][%mdl 1024] Black has compensation.} 52. Bc3 {[%emt 0:00:26]} Kg6 {[%emt 0:00:26]} (52... Bd2 $5 {[%cal Rd2c3]}) 53. Ne5+ {[%emt 0:00:09]} Kf5 {[%emt 0:00:10]} 54. Nf3 {[%emt 0:00:09] Prevents Bd2. And now Re1 would win.} Bf6 {[%emt 0:00:26] Black wants to play ...Bxc3.} 55. Re1 {[%emt 0:00:27]} Qf2 {[%emt 0:00:15]} 56. Rc1 {[%emt 0:02:09]} Bxc3 {[%emt 0:00:32]} 57. Rxc3 $15 {[%emt 0:00:04][%mdl 4096] Endgame KQ-KRN} Ke6 {[%emt 0:01:01]} ({Reject} 57... Qxb2 58. Rxc5+ Kf4 59. Kh2 $14) 58. b3 {[%emt 0:00:25]} Kd5 {[%emt 0:00:39]} 59. Rd3+ {[%emt 0:00:34] [#]} Kc6 $1 {[%emt 0:00:42]} 60. Rc3 {[%emt 0:00:47]} Kb5 {[%emt 0:00:26] Threatens to win with ...Kb4.} 61. Ng1 {[%emt 0:01:30]} Kb4 {[%emt 0:00:43]} 62. Rf3 {[%emt 0:00:05]} Qe1 {[%emt 0:00:07]} 63. Kh2 {[%emt 0:00:02]} Qd2 {[%emt 0:00:33]} 64. Kh1 {[%emt 0:00:06]} Qe1 {[%emt 0:00:07]} (64... Kb5 $17 65. g4 hxg3 66. Rxg3 Qc2) 65. Rd3 {[%emt 0:00:26]} (65. Kh2 $1 $11 {keeps the balance.}) 65... Qf1 {[%emt 0:00:10]} 66. Rf3 {[%emt 0:00:03] Weighted Error Value: White=0.41/Black=0.27 (precise)} 1/2-1/2

[Event "Grandiscacchi GM Festival 2022"]
[Site "Montebelluna"]
[Date "2022.05.18"]
[Round "6.1"]
[White "Loiseau, Quentin"]
[Black "Jobava, Baadur"]
[Result "1/2-1/2"]
[WhiteElo "2445"]
[BlackElo "2600"]
[Annotator "TA"]
[PlyCount "27"]
[EventDate "2022.05.17"]
[EventType "swiss"]
[EventCountry "ITA"]
[SourceTitle "playchess.com"]
[Source "ChessBase"]
[SourceQuality "1"]
[TimeControl "40/3600+30:1800+30"]

{[%evp 16,19,16,-4,-6,-1]} 1. e4 {[%emt 0:00:03]} e5 {[%emt 0:01:36]} 2. Nf3 {[%emt 0:00:08]} Nf6 {[%emt 0:00:04]} 3. d4 {[%emt 0:00:21]} exd4 {[%emt 0:00:16]} 4. e5 {[%emt 0:00:44]} Ne4 {[%emt 0:00:05]} 5. Qxd4 {[%emt 0:02:20]} d5 {[%emt 0:00:06]} 6. exd6 {[%emt 0:01:07]} Nxd6 {[%emt 0:00:05]} 7. Bg5 {[%emt 0:01:47]} Nc6 {[%emt 0:02:52]} 8. Qe3+ {[%emt 0:05:59]} Be7 {[%emt 0:00:07]} 9. Bxe7 {[%emt 0:01:39]} Qxe7 {[%emt 0:00:22] C43: Petroff Defence: 3 d4.} 10. Qxe7+ {[%emt 0:00:10] [#] An uneventful encounter.} {Predecessor:} Nxe7 $146 11. Nc3 Bg4 12. Be2 O-O-O 13. O-O-O Nc6 14. Rhe1 {½-½ (14) Nasuta,G (2518)-Jobava,B (2603) Polanica Zdroj 2021} 1/2-1/2